[Event "Live Chess"]
[Site "Chess.com"]
[Date "2010.12.10"]
[Round "-"]
[White "georgethe12345"]
[Black "hipposcottimus"]
[Result "0-1"]
[CurrentPosition "6rk/ppR1R3/8/3P4/5n2/6P1/P5qP/6K1 w - -"]
[Timezone "UTC"]
[ECO "C58"]
[ECOUrl "https://www.chess.com/openings/Italian-Game-Knight-Attack-Polerio-Bishop-Check-Line-6...Bd7"]
[UTCDate "2010.12.10"]
[UTCTime "00:19:24"]
[WhiteElo "1433"]
[BlackElo "1440"]
[TimeControl "600"]
[Termination "hipposcottimus won by checkmate"]
[StartTime "00:19:24"]
[EndDate "2010.12.10"]
[EndTime "00:30:59"]
[Link "https://www.chess.com/game/live/75742785"]

1. e4 {[%clk 0:10:00]} 1... e5 {[%clk 0:10:00]} 2. Nf3 {[%clk 0:09:58.3]} 2... Nc6 {[%clk 0:09:59]} 3. Bc4 {[%clk 0:09:56.7]} 3... Nf6 {[%clk 0:09:57.5]} 4. Ng5 {[%clk 0:09:48.4]} 4... d5 {[%clk 0:09:55.6]} 5. exd5 {[%clk 0:09:43.5]} 5... Na5 {[%clk 0:09:53.6]} 6. Bb5+ {[%clk 0:09:19.6]} 6... Bd7 {[%clk 0:09:49.3]} 7. Bxd7+ {[%clk 0:09:13.5]} 7... Nxd7 {[%clk 0:09:48.6]} 8. Nf3 {[%clk 0:09:08]} 8... Be7 {[%clk 0:09:41.5]} 9. Nc3 {[%clk 0:09:05.7]} 9... O-O {[%clk 0:09:38.9]} 10. d3 {[%clk 0:09:03.3]} 10... f5 {[%clk 0:09:29.5]} 11. O-O {[%clk 0:08:57.8]} 11... e4 {[%clk 0:09:25.5]} 12. Nd4 {[%clk 0:08:48.7]} 12... Bb4 {[%clk 0:09:19.8]} 13. Qh5 {[%clk 0:08:40.5]} 13... Bxc3 {[%clk 0:09:15.8]} 14. bxc3 {[%clk 0:08:35.9]} 14... Ne5 {[%clk 0:09:02.9]} 15. Nxf5 {[%clk 0:08:30.6]} 15... Qf6 {[%clk 0:06:28.1]} 16. dxe4 {[%clk 0:08:23.7]} 16... g6 {[%clk 0:06:19.9]} 17. Nh6+ {[%clk 0:08:07.1]} 17... Kg7 {[%clk 0:06:09.3]} 18. Qh3 {[%clk 0:07:50.3]} 18... Nac4 {[%clk 0:05:49]} 19. Ng4 {[%clk 0:07:46.5]} 19... Nxg4 {[%clk 0:05:46.2]} 20. Qxg4 {[%clk 0:07:37.1]} 20... Ne5 {[%clk 0:05:44.6]} 21. Qh3 {[%clk 0:07:26.9]} 21... c6 {[%clk 0:05:12]} 22. Bh6+ {[%clk 0:07:21.5]} 22... Kf7 {[%clk 0:05:05.8]} 23. Bxf8 {[%clk 0:07:18.9]} 23... Kxf8 {[%clk 0:05:05.6]} 24. Qxh7 {[%clk 0:07:11.9]} 24... cxd5 {[%clk 0:05:02.1]} 25. f3 {[%clk 0:07:04]} 25... Nf7 {[%clk 0:04:56.4]} 26. exd5 {[%clk 0:06:59.3]} 26... Qxc3 {[%clk 0:04:52.4]} 27. Qxg6 {[%clk 0:06:43.4]} 27... Qxc2 {[%clk 0:04:37.6]} 28. Rac1 {[%clk 0:06:36.4]} 28... Qxg6 {[%clk 0:04:34.1]} 29. Rc7 {[%clk 0:06:27.6]} 29... Kg7 {[%clk 0:04:32.6]} 30. Re1 {[%clk 0:06:23.5]} 30... Rg8 {[%clk 0:04:31.4]} 31. Ree7 {[%clk 0:06:20]} 31... Kh8 {[%clk 0:04:30.1]} 32. g3 {[%clk 0:06:15.8]} 32... Ng5 {[%clk 0:04:26.3]} 33. f4 {[%clk 0:05:53.1]} 33... Nh3+ {[%clk 0:04:13]} 34. Kg2 {[%clk 0:05:50.6]} 34... Nxf4+ {[%clk 0:04:12]} 35. Kf3 {[%clk 0:05:45.8]} 35... Qg4+ {[%clk 0:04:00.1]} 36. Kf2 {[%clk 0:05:39.1]} 36... Nh3+ {[%clk 0:03:56.8]} 37. Kg2 {[%clk 0:05:29.8]} 37... Nf4+ {[%clk 0:03:44.3]} 38. Kg1 {[%clk 0:05:20.5]} 38... Qd1+ {[%clk 0:03:39.8]} 39. Kf2 {[%clk 0:05:17.7]} 39... Qe2+ {[%clk 0:03:38.6]} 40. Kg1 {[%clk 0:05:14.5]} 40... Qg2# {[%clk 0:03:30.7]} 0-1

[Event "Live Chess"]
[Site "Chess.com"]
[Date "2010.12.10"]
[Round "-"]
[White "hipposcottimus"]
[Black "Jpilger"]
[Result "0-1"]
[CurrentPosition "8/p2kn3/P2p2pp/2pP1p2/2P5/3P4/5PPP/1r4K1 w - -"]
[Timezone "UTC"]
[ECO "B30"]
[ECOUrl "https://www.chess.com/openings/Sicilian-Defense-Old-Sicilian-Variation-3.c4"]
[UTCDate "2010.12.10"]
[UTCTime "00:17:01"]
[WhiteElo "1643"]
[BlackElo "1581"]
[TimeControl "60"]
[Termination "Jpilger won by checkmate"]
[StartTime "00:17:01"]
[EndDate "2010.12.10"]
[EndTime "00:18:33"]
[Link "https://www.chess.com/game/live/75742300"]

1. e4 {[%clk 0:01:00]} 1... c5 {[%clk 0:01:00]} 2. Nf3 {[%clk 0:00:59.6]} 2... Nc6 {[%clk 0:01:00]} 3. c4 {[%clk 0:00:58.3]} 3... d6 {[%clk 0:00:57.7]} 4. d3 {[%clk 0:00:57.8]} 4... g6 {[%clk 0:00:56]} 5. Nc3 {[%clk 0:00:57.6]} 5... Bg7 {[%clk 0:00:55.3]} 6. Bd2 {[%clk 0:00:56.2]} 6... Bg4 {[%clk 0:00:54.9]} 7. Be2 {[%clk 0:00:54.7]} 7... Bxf3 {[%clk 0:00:51.5]} 8. Bxf3 {[%clk 0:00:54]} 8... Nd4 {[%clk 0:00:51.5]} 9. O-O {[%clk 0:00:53.2]} 9... Nxf3+ {[%clk 0:00:49.8]} 10. Qxf3 {[%clk 0:00:53]} 10... Bd4 {[%clk 0:00:47.7]} 11. Be3 {[%clk 0:00:50.8]} 11... Bxe3 {[%clk 0:00:45]} 12. Qxe3 {[%clk 0:00:49.3]} 12... e6 {[%clk 0:00:44.4]} 13. Nd5 {[%clk 0:00:49]} 13... exd5 {[%clk 0:00:43]} 14. exd5+ {[%clk 0:00:48.8]} 14... Qe7 {[%clk 0:00:42.4]} 15. Rfe1 {[%clk 0:00:47.9]} 15... Qxe3 {[%clk 0:00:40]} 16. Rxe3+ {[%clk 0:00:47.7]} 16... Kd7 {[%clk 0:00:36.9]} 17. Rae1 {[%clk 0:00:47.2]} 17... f5 {[%clk 0:00:28.3]} 18. a3 {[%clk 0:00:46.9]} 18... h6 {[%clk 0:00:26.4]} 19. b4 {[%clk 0:00:45.3]} 19... b6 {[%clk 0:00:23.7]} 20. bxc5 {[%clk 0:00:43.8]} 20... bxc5 {[%clk 0:00:23.1]} 21. Rb1 {[%clk 0:00:42.4]} 21... Kc7 {[%clk 0:00:18.1]} 22. a4 {[%clk 0:00:39.3]} 22... Rh7 {[%clk 0:00:17.2]} 23. a5 {[%clk 0:00:37.6]} 23... Re7 {[%clk 0:00:16.8]} 24. Rxe7+ {[%clk 0:00:35.6]} 24... Nxe7 {[%clk 0:00:16.2]} 25. a6 {[%clk 0:00:35.3]} 25... Rb8 {[%clk 0:00:15.5]} 26. Re1 {[%clk 0:00:32.5]} 26... Kd7 {[%clk 0:00:13.9]} 27. Rb1 {[%clk 0:00:29.8]} 27... Rxb1# {[%clk 0:00:12.3]} 0-1

[Event "Live Chess"]
[Site "Chess.com"]
[Date "2010.12.10"]
[Round "-"]
[White "hipposcottimus"]
[Black "mathbeauty"]
[Result "0-1"]
[CurrentPosition "3r1k2/pp3p2/2p3p1/4n1N1/B1b5/6R1/PP3bPP/7K w - -"]
[Timezone "UTC"]
[ECO "C42"]
[ECOUrl "https://www.chess.com/openings/Petrovs-Defense-Urusov-Gambit"]
[UTCDate "2010.12.10"]
[UTCTime "00:13:59"]
[WhiteElo "1652"]
[BlackElo "1388"]
[TimeControl "120"]
[Termination "mathbeauty won on time"]
[StartTime "00:13:59"]
[EndDate "2010.12.10"]
[EndTime "00:16:06"]
[Link "https://www.chess.com/game/live/75741400"]

1. e4 {[%clk 0:02:00]} 1... e5 {[%clk 0:02:00]} 2. Nf3 {[%clk 0:01:59.6]} 2... Nf6 {[%clk 0:01:59.2]} 3. Bc4 {[%clk 0:01:59.3]} 3... d6 {[%clk 0:01:56.9]} 4. d4 {[%clk 0:01:57.2]} 4... exd4 {[%clk 0:01:55.1]} 5. c3 {[%clk 0:01:51]} 5... dxc3 {[%clk 0:01:52.9]} 6. Nxc3 {[%clk 0:01:49.6]} 6... h6 {[%clk 0:01:51.1]} 7. O-O {[%clk 0:01:48.4]} 7... Be7 {[%clk 0:01:50.1]} 8. e5 {[%clk 0:01:44.6]} 8... dxe5 {[%clk 0:01:47.4]} 9. Nxe5 {[%clk 0:01:41.5]} 9... Be6 {[%clk 0:01:42.9]} 10. Bb5+ {[%clk 0:01:37.7]} 10... c6 {[%clk 0:01:39]} 11. Qxd8+ {[%clk 0:01:30.6]} 11... Bxd8 {[%clk 0:01:36.9]} 12. Ba4 {[%clk 0:01:27.6]} 12... O-O {[%clk 0:01:35.3]} 13. f4 {[%clk 0:01:23.9]} 13... Nbd7 {[%clk 0:01:33]} 14. Rf3 {[%clk 0:01:21.4]} 14... Nxe5 {[%clk 0:01:31.2]} 15. fxe5 {[%clk 0:01:21.1]} 15... Ng4 {[%clk 0:01:28.9]} 16. Rg3 {[%clk 0:01:20.3]} 16... Nxe5 {[%clk 0:01:27.1]} 17. Bxh6 {[%clk 0:01:18.1]} 17... g6 {[%clk 0:01:25.2]} 18. Bxf8 {[%clk 0:01:16.4]} 18... Kxf8 {[%clk 0:01:24.5]} 19. Ne4 {[%clk 0:01:11]} 19... Bb6+ {[%clk 0:01:22.3]} 20. Kh1 {[%clk 0:01:09.3]} 20... Rd8 {[%clk 0:01:17.8]} 21. Rf1 {[%clk 0:01:05.9]} 21... Bd5 {[%clk 0:01:15.3]} 22. Ng5 {[%clk 0:01:04.2]} 22... Bc4 {[%clk 0:01:09.8]} 23. Rf2 {[%clk 0:00:59.3]} 23... Bxf2 {[%clk 0:01:05.6]} 0-1

[Event "Live Chess"]
[Site "Chess.com"]
[Date "2010.12.10"]
[Round "-"]
[White "Biassa"]
[Black "hipposcottimus"]
[Result "0-1"]
[CurrentPosition "6k1/pp4pp/2p5/8/1P1P1Nn1/3Kr3/1P5P/5R2 w - -"]
[Timezone "UTC"]
[ECO "D00"]
[ECOUrl "https://www.chess.com/openings/Queens-Pawn-Opening-1...d5-2.e3"]
[UTCDate "2010.12.10"]
[UTCTime "00:04:45"]
[WhiteElo "1588"]
[BlackElo "1664"]
[TimeControl "60"]
[Termination "hipposcottimus won on time"]
[StartTime "00:04:45"]
[EndDate "2010.12.10"]
[EndTime "00:06:47"]
[Link "https://www.chess.com/game/live/75739437"]

1. d4 {[%clk 0:01:00]} 1... d5 {[%clk 0:01:00]} 2. e3 {[%clk 0:00:59.7]} 2... c6 {[%clk 0:00:59.8]} 3. Bd3 {[%clk 0:00:59.2]} 3... Nd7 {[%clk 0:00:59.5]} 4. Nc3 {[%clk 0:00:58.7]} 4... e6 {[%clk 0:00:59.3]} 5. f3 {[%clk 0:00:58.2]} 5... Ngf6 {[%clk 0:00:59.1]} 6. Bd2 {[%clk 0:00:57.9]} 6... Bb4 {[%clk 0:00:58.3]} 7. e4 {[%clk 0:00:57.2]} 7... O-O {[%clk 0:00:55.1]} 8. e5 {[%clk 0:00:56.1]} 8... Ne8 {[%clk 0:00:52.6]} 9. a3 {[%clk 0:00:55.5]} 9... f6 {[%clk 0:00:51.9]} 10. axb4 {[%clk 0:00:53.8]} 10... fxe5 {[%clk 0:00:51.7]} 11. f4 {[%clk 0:00:52.5]} 11... exd4 {[%clk 0:00:49.8]} 12. Nce2 {[%clk 0:00:51.2]} 12... Qh4+ {[%clk 0:00:47]} 13. g3 {[%clk 0:00:49.7]} 13... Qh6 {[%clk 0:00:46.6]} 14. c3 {[%clk 0:00:49.2]} 14... Qf6 {[%clk 0:00:46.3]} 15. cxd4 {[%clk 0:00:47.3]} 15... e5 {[%clk 0:00:45.3]} 16. Qc2 {[%clk 0:00:45.9]} 16... e4 {[%clk 0:00:41]} 17. f5 {[%clk 0:00:39]} 17... Qxf5 {[%clk 0:00:38.9]} 18. g4 {[%clk 0:00:37.5]} 18... Qf2+ {[%clk 0:00:37.5]} 19. Kd1 {[%clk 0:00:34.8]} 19... exd3 {[%clk 0:00:36.6]} 20. Qxd3 {[%clk 0:00:31.7]} 20... Nb6 {[%clk 0:00:32.7]} 21. Nc3 {[%clk 0:00:28.7]} 21... Nc4 {[%clk 0:00:30.4]} 22. Kc2 {[%clk 0:00:26.3]} 22... Nxd2 {[%clk 0:00:28.9]} 23. Re1 {[%clk 0:00:19.5]} 23... Bxg4 {[%clk 0:00:28.2]} 24. Re2 {[%clk 0:00:17]} 24... Bf5 {[%clk 0:00:26.3]} 25. Rxf2 {[%clk 0:00:15.4]} 25... Bxd3+ {[%clk 0:00:25.5]} 26. Kxd3 {[%clk 0:00:14.8]} 26... Rxf2 {[%clk 0:00:25.2]} 27. Ke3 {[%clk 0:00:12.5]} 27... Rg2 {[%clk 0:00:21.6]} 28. Nge2 {[%clk 0:00:10.3]} 28... Ne4 {[%clk 0:00:20.6]} 29. Nxe4 {[%clk 0:00:08.3]} 29... Rg6 {[%clk 0:00:20.3]} 30. Rf1 {[%clk 0:00:07.2]} 30... dxe4 {[%clk 0:00:18.7]} 31. Kxe4 {[%clk 0:00:05.8]} 31... Nf6+ {[%clk 0:00:18.5]} 32. Kd3 {[%clk 0:00:05.1]} 32... Re8 {[%clk 0:00:18.1]} 33. Nf4 {[%clk 0:00:03.5]} 33... Rg2 {[%clk 0:00:17.6]} 34. Nxg2 {[%clk 0:00:02.4]} 34... Ng4 {[%clk 0:00:16.2]} 35. Nf4 {[%clk 0:00:01]} 35... Re3+ {[%clk 0:00:15.2]} 0-1

[Event "Live Chess"]
[Site "Chess.com"]
[Date "2010.12.09"]
[Round "-"]
[White "chessplayer2731"]
[Black "hipposcottimus"]
[Result "1-0"]
[CurrentPosition "1R3k2/7Q/3p1rp1/p3p3/8/8/PPP2PPP/6K1 b - -"]
[Timezone "UTC"]
[ECO "C45"]
[ECOUrl "https://www.chess.com/openings/Scotch-Game"]
[UTCDate "2010.12.09"]
[UTCTime "22:22:37"]
[WhiteElo "1616"]
[BlackElo "1657"]
[TimeControl "60"]
[Termination "chessplayer2731 won by checkmate"]
[StartTime "22:22:37"]
[EndDate "2010.12.09"]
[EndTime "22:24:24"]
[Link "https://www.chess.com/game/live/75714121"]

1. e4 {[%clk 0:01:00]} 1... e5 {[%clk 0:01:00]} 2. Nf3 {[%clk 0:00:59.3]} 2... Nc6 {[%clk 0:00:59.6]} 3. d4 {[%clk 0:00:57.6]} 3... Nf6 {[%clk 0:00:59.3]} 4. d5 {[%clk 0:00:55.7]} 4... Ne7 {[%clk 0:00:57.8]} 5. Nc3 {[%clk 0:00:54.3]} 5... d6 {[%clk 0:00:57.5]} 6. Bd3 {[%clk 0:00:53.4]} 6... c6 {[%clk 0:00:57.3]} 7. O-O {[%clk 0:00:52.7]} 7... cxd5 {[%clk 0:00:56.5]} 8. exd5 {[%clk 0:00:50.4]} 8... Nexd5 {[%clk 0:00:56.2]} 9. Nxd5 {[%clk 0:00:45.6]} 9... Nxd5 {[%clk 0:00:55.9]} 10. Bc4 {[%clk 0:00:44.6]} 10... Be6 {[%clk 0:00:55.4]} 11. Re1 {[%clk 0:00:42.8]} 11... Nb6 {[%clk 0:00:52.6]} 12. Bxe6 {[%clk 0:00:40.5]} 12... fxe6 {[%clk 0:00:52.3]} 13. Ng5 {[%clk 0:00:39]} 13... Be7 {[%clk 0:00:52]} 14. Nxe6 {[%clk 0:00:35.3]} 14... Kf7 {[%clk 0:00:46.2]} 15. Nxd8+ {[%clk 0:00:33.9]} 15... Raxd8 {[%clk 0:00:43.4]} 16. Qf3+ {[%clk 0:00:32.8]} 16... Bf6 {[%clk 0:00:42.6]} 17. Bg5 {[%clk 0:00:31.3]} 17... Kg6 {[%clk 0:00:37.3]} 18. Re4 {[%clk 0:00:29.5]} 18... Rhf8 {[%clk 0:00:34.2]} 19. Bxf6 {[%clk 0:00:26.7]} 19... Rxf6 {[%clk 0:00:32]} 20. Qg3+ {[%clk 0:00:25.8]} 20... Kf7 {[%clk 0:00:30.9]} 21. Rg4 {[%clk 0:00:24.8]} 21... g6 {[%clk 0:00:26.6]} 22. Qh3 {[%clk 0:00:23.3]} 22... Kg7 {[%clk 0:00:21.9]} 23. Rh4 {[%clk 0:00:22.1]} 23... Rh8 {[%clk 0:00:21]} 24. Rd1 {[%clk 0:00:19.4]} 24... Nd5 {[%clk 0:00:20.7]} 25. Rxd5 {[%clk 0:00:17.9]} 25... b5 {[%clk 0:00:19.9]} 26. Rxb5 {[%clk 0:00:16.9]} 26... a5 {[%clk 0:00:19.2]} 27. Rb7+ {[%clk 0:00:15.8]} 27... Kg8 {[%clk 0:00:18.4]} 28. Rhxh7 {[%clk 0:00:14.7]} 28... Rxh7 {[%clk 0:00:17.5]} 29. Qxh7+ {[%clk 0:00:12.5]} 29... Kf8 {[%clk 0:00:17.2]} 30. Rb8# {[%clk 0:00:11.2]} 1-0

[Event "Live Chess"]
[Site "Chess.com"]
[Date "2010.12.09"]
[Round "-"]
[White "Tirziman"]
[Black "hipposcottimus"]
[Result "0-1"]
[CurrentPosition "r2q1rk1/pp3ppp/5n2/6N1/4bb2/1P2Q3/PP1K1P1P/R1B3R1 w - -"]
[Timezone "UTC"]
[ECO "C57"]
[ECOUrl "https://www.chess.com/openings/Italian-Game-Knight-Attack-Polerio-Defense"]
[UTCDate "2010.12.09"]
[UTCTime "22:20:41"]
[WhiteElo "1580"]
[BlackElo "1666"]
[TimeControl "60"]
[Termination "hipposcottimus won by resignation"]
[StartTime "22:20:41"]
[EndDate "2010.12.09"]
[EndTime "22:22:03"]
[Link "https://www.chess.com/game/live/75713592"]

1. e4 {[%clk 0:01:00]} 1... e5 {[%clk 0:01:00]} 2. Nf3 {[%clk 0:00:59.3]} 2... Nc6 {[%clk 0:00:59.7]} 3. Bc4 {[%clk 0:00:58.5]} 3... Nf6 {[%clk 0:00:59.4]} 4. Ng5 {[%clk 0:00:57.5]} 4... d5 {[%clk 0:00:57.4]} 5. exd5 {[%clk 0:00:56.8]} 5... Na5 {[%clk 0:00:57]} 6. Bb3 {[%clk 0:00:53.3]} 6... Bd7 {[%clk 0:00:56.6]} 7. d6 {[%clk 0:00:51.5]} 7... Nxb3 {[%clk 0:00:55.3]} 8. cxb3 {[%clk 0:00:50.4]} 8... cxd6 {[%clk 0:00:55]} 9. Qf3 {[%clk 0:00:49.2]} 9... e4 {[%clk 0:00:52.1]} 10. Qf4 {[%clk 0:00:46]} 10... d5 {[%clk 0:00:49.8]} 11. g4 {[%clk 0:00:44]} 11... Be6 {[%clk 0:00:48.7]} 12. Nc3 {[%clk 0:00:41.5]} 12... Bd6 {[%clk 0:00:45.1]} 13. Qe3 {[%clk 0:00:38.1]} 13... Bxg4 {[%clk 0:00:44.7]} 14. Rg1 {[%clk 0:00:34.9]} 14... Bf3 {[%clk 0:00:40.4]} 15. d3 {[%clk 0:00:32.1]} 15... O-O {[%clk 0:00:36.9]} 16. dxe4 {[%clk 0:00:27.5]} 16... dxe4 {[%clk 0:00:33.5]} 17. Ncxe4 {[%clk 0:00:25.4]} 17... Bxe4 {[%clk 0:00:29.9]} 18. Kd2 {[%clk 0:00:21]} 18... Bf4+ {[%clk 0:00:26.5]} 0-1

[Event "Live Chess"]
[Site "Chess.com"]
[Date "2010.12.09"]
[Round "-"]
[White "mr_Ralf"]
[Black "hipposcottimus"]
[Result "0-1"]
[CurrentPosition "4r2k/pp2R1pp/8/2R5/8/1Q1P3P/PP4P1/5q1K w - -"]
[Timezone "UTC"]
[ECO "A10"]
[ECOUrl "https://www.chess.com/openings/English-Opening-Anglo-Scandinavian-Defense"]
[UTCDate "2010.12.09"]
[UTCTime "22:16:49"]
[WhiteElo "1471"]
[BlackElo "1660"]
[TimeControl "60"]
[Termination "hipposcottimus won on time"]
[StartTime "22:16:49"]
[EndDate "2010.12.09"]
[EndTime "22:18:55"]
[Link "https://www.chess.com/game/live/75712593"]

1. c4 {[%clk 0:01:00]} 1... d5 {[%clk 0:01:00]} 2. Nc3 {[%clk 0:00:59.6]} 2... dxc4 {[%clk 0:00:58.2]} 3. e4 {[%clk 0:00:59.3]} 3... e5 {[%clk 0:00:57.9]} 4. Bxc4 {[%clk 0:00:58.7]} 4... Nf6 {[%clk 0:00:57.2]} 5. d3 {[%clk 0:00:58.2]} 5... Bb4 {[%clk 0:00:56.3]} 6. Nf3 {[%clk 0:00:57.3]} 6... Nc6 {[%clk 0:00:54]} 7. Bd2 {[%clk 0:00:55.6]} 7... Bxc3 {[%clk 0:00:52.8]} 8. Bxc3 {[%clk 0:00:54.1]} 8... O-O {[%clk 0:00:52.6]} 9. Bxe5 {[%clk 0:00:53]} 9... Nxe5 {[%clk 0:00:50.9]} 10. Nxe5 {[%clk 0:00:53]} 10... Nd7 {[%clk 0:00:47.6]} 11. Nf3 {[%clk 0:00:52.4]} 11... Nf6 {[%clk 0:00:46.1]} 12. O-O {[%clk 0:00:51.6]} 12... Bg4 {[%clk 0:00:44.1]} 13. Re1 {[%clk 0:00:43.6]} 13... Re8 {[%clk 0:00:41.8]} 14. h3 {[%clk 0:00:43]} 14... Bh5 {[%clk 0:00:40.7]} 15. Qb3 {[%clk 0:00:40.2]} 15... Re7 {[%clk 0:00:37.8]} 16. Ne5 {[%clk 0:00:35.7]} 16... c5 {[%clk 0:00:35.2]} 17. Nxf7 {[%clk 0:00:32.5]} 17... Bxf7 {[%clk 0:00:31.8]} 18. Bxf7+ {[%clk 0:00:30.9]} 18... Rxf7 {[%clk 0:00:31.6]} 19. e5 {[%clk 0:00:30]} 19... Nd5 {[%clk 0:00:28.7]} 20. e6 {[%clk 0:00:25.9]} 20... Re7 {[%clk 0:00:27.7]} 21. Re5 {[%clk 0:00:22.4]} 21... Qd6 {[%clk 0:00:26.3]} 22. Rxd5 {[%clk 0:00:20.5]} 22... Qxe6 {[%clk 0:00:23.9]} 23. Rc1 {[%clk 0:00:12.3]} 23... Rae8 {[%clk 0:00:22.3]} 24. Rcxc5 {[%clk 0:00:10.6]} 24... Qe1+ {[%clk 0:00:16.8]} 25. Kh2 {[%clk 0:00:09]} 25... Qxf2 {[%clk 0:00:16.3]} 26. Re5+ {[%clk 0:00:04.9]} 26... Kh8 {[%clk 0:00:12.6]} 27. Rxe7 {[%clk 0:00:04.1]} 27... Qf4+ {[%clk 0:00:12]} 28. Kh1 {[%clk 0:00:01.7]} 28... Qf1+ {[%clk 0:00:10.2]} 29. Kh2 {[%clk 0:00:01.3]} 29... Qf4+ {[%clk 0:00:09.3]} 30. Kh1 {[%clk 0:00:00.7]} 30... Qf1+ {[%clk 0:00:08.4]} 0-1

[Event "Live Chess"]
[Site "Chess.com"]
[Date "2010.12.09"]
[Round "-"]
[White "hipposcottimus"]
[Black "mr_Ralf"]
[Result "1-0"]
[CurrentPosition "4r1k1/p6p/1p4p1/n1p1N3/5B2/2P2K2/6PP/8 b - -"]
[Timezone "UTC"]
[ECO "C41"]
[ECOUrl "https://www.chess.com/openings/Philidor-Defense-Exchange-Variation-4.Nxd4"]
[UTCDate "2010.12.09"]
[UTCTime "22:14:23"]
[WhiteElo "1660"]
[BlackElo "1471"]
[TimeControl "60"]
[Termination "hipposcottimus won on time"]
[StartTime "22:14:23"]
[EndDate "2010.12.09"]
[EndTime "22:16:31"]
[Link "https://www.chess.com/game/live/75711924"]

1. e4 {[%clk 0:01:00]} 1... e5 {[%clk 0:01:00]} 2. Nf3 {[%clk 0:00:59.5]} 2... d6 {[%clk 0:00:59.5]} 3. d4 {[%clk 0:00:59.2]} 3... exd4 {[%clk 0:00:58.1]} 4. Nxd4 {[%clk 0:00:59.1]} 4... c5 {[%clk 0:00:57.6]} 5. Bb5+ {[%clk 0:00:55.8]} 5... Bd7 {[%clk 0:00:55.6]} 6. Bxd7+ {[%clk 0:00:54]} 6... Qxd7 {[%clk 0:00:55.6]} 7. Nf5 {[%clk 0:00:53.8]} 7... g6 {[%clk 0:00:53.3]} 8. Ne3 {[%clk 0:00:46.6]} 8... Bg7 {[%clk 0:00:52.6]} 9. O-O {[%clk 0:00:45]} 9... Ne7 {[%clk 0:00:51.5]} 10. c3 {[%clk 0:00:44.5]} 10... O-O {[%clk 0:00:50.6]} 11. Nd2 {[%clk 0:00:44.2]} 11... Nbc6 {[%clk 0:00:50]} 12. Nb3 {[%clk 0:00:43.4]} 12... b6 {[%clk 0:00:47.8]} 13. f4 {[%clk 0:00:40.6]} 13... Bh6 {[%clk 0:00:43.7]} 14. e5 {[%clk 0:00:39.5]} 14... Bxf4 {[%clk 0:00:41.8]} 15. Rxf4 {[%clk 0:00:37.6]} 15... Qb7 {[%clk 0:00:30.4]} 16. Nd5 {[%clk 0:00:34.4]} 16... Nxd5 {[%clk 0:00:29.3]} 17. Qxd5 {[%clk 0:00:33.9]} 17... Rad8 {[%clk 0:00:26]} 18. exd6 {[%clk 0:00:32.2]} 18... Rfe8 {[%clk 0:00:23.9]} 19. Bd2 {[%clk 0:00:26.7]} 19... Re6 {[%clk 0:00:21.7]} 20. Rd1 {[%clk 0:00:19.6]} 20... Rexd6 {[%clk 0:00:19.9]} 21. Qxf7+ {[%clk 0:00:18.8]} 21... Qxf7 {[%clk 0:00:18.2]} 22. Rxf7 {[%clk 0:00:17.2]} 22... Kxf7 {[%clk 0:00:16.8]} 23. Rf1+ {[%clk 0:00:17]} 23... Kg8 {[%clk 0:00:16.2]} 24. Bf4 {[%clk 0:00:16.6]} 24... Rd1 {[%clk 0:00:14.5]} 25. Bg3 {[%clk 0:00:16.3]} 25... Rxf1+ {[%clk 0:00:12.8]} 26. Kxf1 {[%clk 0:00:16.1]} 26... Rd1+ {[%clk 0:00:09.9]} 27. Be1 {[%clk 0:00:15.8]} 27... Rb1 {[%clk 0:00:07.4]} 28. Ke2 {[%clk 0:00:15.5]} 28... Rxb2+ {[%clk 0:00:06.5]} 29. Bd2 {[%clk 0:00:15.2]} 29... Rxa2 {[%clk 0:00:06.1]} 30. Nc1 {[%clk 0:00:12.6]} 30... Ra4 {[%clk 0:00:03.6]} 31. Nd3 {[%clk 0:00:12.3]} 31... Re4+ {[%clk 0:00:02.5]} 32. Kf3 {[%clk 0:00:10]} 32... Re8 {[%clk 0:00:01.5]} 33. Bf4 {[%clk 0:00:08.9]} 33... Na5 {[%clk 0:00:01]} 34. Ne5 {[%clk 0:00:08.4]} 1-0